fUSD/lending_fUSD_20260515
["ID","MTS","AMOUNT","RATE_DAILY","PERIOD"]
[422320202,1778819451000,-151.29401504,0.00026575,2]
[422320199,1778819451000,-477.22,0.00026546,2]
[422320195,1778819451000,-1080.81,0.00026546,2]
[422320206,1778819451000,-1610.95,0.00026575,7]
[422320189,1778819451000,-600.0,0.00026519,30]
[422320209,1778819451000,-601.88,0.00026575,7]
[422320211,1778819451000,-200.0,0.0002659,20]
[422320214,1778819451000,-1038.15962799,0.00026712,2]
[422320208,1778819451000,-477.22,0.00026575,7]
[422320207,1778819451000,-1075.67,0.00026575,7]
[422320217,1778819451000,-1006.92,0.00026806,2]
[422320213,1778819451000,-1238.59,0.000267,7]
[422320210,1778819451000,-477.31,0.00026575,7]
[422320218,1778819451000,-436.50340337,0.00026825,2]
[422320212,1778819451000,-579.0,0.00026644,4]
[422320216,1778819451000,-4974.92781148,0.000268,2]
[422320219,1778819451000,-5025.03645926,0.00026846,2]
[422320168,1778819451000,-1075.51,0.00026461,2]
[422320220,1778819451000,-150.0,0.00026849,2]
[422320215,1778819451000,-202.81146805,0.0002679,7]
[422320190,1778819451000,-600.0,0.00026519,30]
[422320196,1778819451000,-601.82,0.00026546,2]
[422320191,1778819451000,-600.0,0.00026519,30]
[422320157,1778819451000,-300.0,0.00026433,30]
[422320187,1778819451000,-165.0,0.00026519,30]
[422320166,1778819451000,-1080.81,0.00026461,2]
[422320163,1778819451000,-477.22,0.0002646,2]
[422320164,1778819451000,-601.85,0.0002646,2]
[422320165,1778819451000,-477.27,0.0002646,2]
[422320167,1778819451000,-1610.79,0.00026461,2]
[422320179,1778819451000,-477.22,0.00026517,30]
[422320170,1778819451000,-1610.79,0.00026489,7]
[422320180,1778819451000,-601.85,0.00026517,7]
[422320169,1778819451000,-601.82,0.00026489,7]
[422320173,1778819451000,-601.85,0.00026489,7]
[422320171,1778819451000,-1075.51,0.00026489,7]
[422320172,1778819451000,-477.22,0.00026489,7]
[422320159,1778819451000,-300.0,0.00026433,30]
[422320188,1778819451000,-600.0,0.00026519,30]
[422320174,1778819451000,-477.27,0.00026489,7]
[422320192,1778819451000,-600.0,0.00026519,30]
[422320182,1778819451000,-1080.81,0.00026518,7]
[422320183,1778819451000,-1610.79,0.00026518,7]
[422320185,1778819451000,-150.0,0.00026519,30]
[422320186,1778819451000,-150.0,0.00026519,30]
[422320181,1778819451000,-477.27,0.00026517,30]
[422320176,1778819451000,-4974.92781148,0.000265,2]
[422320178,1778819451000,-601.82,0.00026517,7]
[422320177,1778819451000,-214.997284,0.000265,7]
[422320175,1778819451000,-1080.81,0.0002649,7]
[422320184,1778819451000,-1075.51,0.00026518,7]
[422320265,1778819452000,-1933.17065798,0.00027397,7]
[422320267,1778819452000,-1017.77,0.00027397,2]
[422320263,1778819452000,-2000.0,0.00027397,7]
[422320264,1778819452000,-2000.0,0.00027397,7]
[422320261,1778819452000,-2000.0,0.00027397,7]
[422320251,1778819452000,-150.0,0.00027397,2]
[422320259,1778819452000,-1010.3,0.00027397,2]
[422320253,1778819452000,-200.0,0.00027397,2]
[422320255,1778819452000,-150.38032802,0.00027397,2]
[422320269,1778819452000,-151.0,0.00027397,2]
[422320254,1778819452000,-150.0,0.00027397,2]
[422320252,1778819452000,-150.0,0.00027397,2]
[422320262,1778819452000,-2000.0,0.00027397,7]
[422320249,1778819452000,-1631.19290195,0.00027397,30]
[422320283,1778819452000,-151.0,0.00027397,2]
[422320266,1778819452000,-151.19263811,0.00027397,2]
[422320260,1778819452000,-2000.0,0.00027397,7]
[422320271,1778819452000,-151.0,0.00027397,2]
[422320270,1778819452000,-151.0,0.00027397,2]
[422320273,1778819452000,-151.0,0.00027397,2]
[422320284,1778819452000,-151.0,0.00027397,2]
[422320285,1778819452000,-151.0,0.00027397,2]
[422320272,1778819452000,-151.0,0.00027397,2]
[422320276,1778819452000,-154.088649,0.00027397,2]
[422320275,1778819452000,-548.76,0.00027397,2]
[422320274,1778819452000,-190.641776,0.00027397,2]
[422320277,1778819452000,-526.48,0.00027397,2]
[422320280,1778819452000,-151.0,0.00027397,2]
[422320268,1778819452000,-612.11,0.00027397,20]
[422320258,1778819452000,-1500.0,0.00027397,2]
[422320231,1778819452000,-550.0,0.00027,30]
[422320247,1778819452000,-230.2691468,0.00027397,7]
[422320282,1778819452000,-151.0,0.00027397,2]
[422320226,1778819452000,-2000.0,0.00027,2]
[422320229,1778819452000,-550.0,0.00027,30]
[422320221,1778819452000,-877.0,0.00026894,2]
[422320223,1778819452000,-431.0,0.0002699,5]
[422320230,1778819452000,-550.0,0.00027,30]
[422320224,1778819452000,-340.0,0.0002699,5]
[422320228,1778819452000,-183.0,0.00027,30]
[422320225,1778819452000,-387.0,0.0002699,5]
[422320222,1778819452000,-766.0,0.00026894,2]
[422320227,1778819452000,-150.0,0.00027,30]
[422320232,1778819452000,-550.0,0.00027,30]
[422320236,1778819452000,-2571.710695,0.0002701,2]
[422320233,1778819452000,-550.0,0.00027,30]
[422320240,1778819452000,-4974.92781148,0.000273,2]
[422320243,1778819452000,-152.0,0.00027385,6]
[422320242,1778819452000,-354.72735544,0.000273,30]
[422320237,1778819452000,-4974.92781148,0.000271,2]
[422320244,1778819452000,-151.0,0.00027394,7]
[422320239,1778819452000,-151.0,0.00027297,7]
[422320235,1778819452000,-214.997284,0.00027,30]
[422320234,1778819452000,-419.0,0.00027,30]
[422320238,1778819452000,-579.0,0.00027205,4]
[422320241,1778819452000,-354.72735546,0.000273,30]
[422320246,1778819452000,-921.07658725,0.00027397,7]
[422320256,1778819452000,-187.32,0.00027397,7]
[422320250,1778819452000,-200.0,0.00027397,2]
[422320248,1778819452000,-2097.2517538,0.00027397,2]
[422320245,1778819452000,-500.0,0.00027396,2]
[422320257,1778819452000,-200.0,0.00027397,2]
[422320281,1778819452000,-151.0,0.00027397,2]
[422320301,1778819452000,-270.241083,0.00027397,2]
[422320279,1778819452000,-151.0,0.00027397,2]
[422320312,1778819452000,-150.0,0.00027397,2]
[422320319,1778819452000,-5194.12,0.000274,2]
[422320322,1778819452000,-5194.12,0.000274,2]
[422320324,1778819452000,-232.0,0.00027416,120]
[422320332,1778819452000,-171.12,0.00027635,30]
[422320333,1778819452000,-171.12,0.00027635,30]
[422320334,1778819452000,-200.0,0.00027671,2]
[422320323,1778819452000,-5194.12,0.000274,2]
[422320325,1778819452000,-519.58,0.00027497,7]
[422320331,1778819452000,-200.0,0.00027627,2]
[422320327,1778819452000,-401.84,0.000275,2]
[422320326,1778819452000,-204.04938408,0.000275,2]
[422320328,1778819452000,-500.0,0.0002759,120]
[422320329,1778819452000,-259.411,0.0002761,2]
[422320330,1778819452000,-1006.92,0.00027612,2]
[422320337,1778819452000,-579.0,0.00027767,5]
[422320336,1778819452000,-200.0,0.00027671,2]
[422320346,1778819452000,-743.50770149,0.00027864,2]
[422320338,1778819452000,-500.0,0.000278,7]
[422320335,1778819452000,-200.0,0.00027671,2]
[422320347,1778819452000,-181.08010149,0.00027864,2]
[422320341,1778819452000,-623.58710448,0.00027864,2]
[422320343,1778819452000,-181.08010149,0.00027864,2]
[422320345,1778819452000,-151.0,0.00027864,2]
[422320339,1778819452000,-175.0,0.00027805,120]
[422320348,1778819452000,-152.0,0.00027864,2]
[422320342,1778819452000,-200.0,0.00027864,2]
[422320344,1778819452000,-1235.18214925,0.00027864,2]
[422320278,1778819452000,-300.0,0.00027397,2]
[422320321,1778819452000,-5194.12,0.000274,2]
[422320318,1778819452000,-172.92418375,0.000274,120]
[422320340,1778819452000,-578.20924308,0.00027864,2]
[422320320,1778819452000,-5194.12,0.000274,2]
[422320317,1778819452000,-2900.42,0.000274,14]
[422320286,1778819452000,-151.0,0.00027397,2]
[422320288,1778819452000,-223.723344,0.00027397,2]
[422320290,1778819452000,-223.723344,0.00027397,2]
[422320292,1778819452000,-223.723344,0.00027397,2]
[422320291,1778819452000,-223.723344,0.00027397,2]
[422320287,1778819452000,-223.723344,0.00027397,2]
[422320297,1778819452000,-270.241083,0.00027397,2]
[422320298,1778819452000,-270.241083,0.00027397,2]
[422320293,1778819452000,-223.723344,0.00027397,2]
[422320294,1778819452000,-223.723344,0.00027397,2]
[422320295,1778819452000,-270.241083,0.00027397,2]
[422320296,1778819452000,-270.241083,0.00027397,2]
[422320310,1778819452000,-150.0,0.00027397,2]
[422320289,1778819452000,-223.723344,0.00027397,2]
[422320299,1778819452000,-270.241083,0.00027397,2]
[422320316,1778819452000,-1833.39,0.000274,7]
[422320300,1778819452000,-270.241083,0.00027397,2]
[422320315,1778819452000,-2578.93,0.000274,7]
[422320313,1778819452000,-207.92460459,0.00027397,2]
[422320311,1778819452000,-150.0,0.00027397,2]
[422320307,1778819452000,-150.0,0.00027397,2]
[422320304,1778819452000,-5110.23,0.00027397,10]
[422320314,1778819452000,-921.07658725,0.00027397,7]
[422320309,1778819452000,-150.0,0.00027397,2]
[422320306,1778819452000,-3548.77,0.00027397,10]
[422320305,1778819452000,-4258.53,0.00027397,10]
[422320302,1778819452000,-6132.28,0.00027397,10]
[422320303,1778819452000,-270.241083,0.00027397,2]
[422320308,1778819452000,-150.0,0.00027397,2]
[422320369,1778819453000,-625.0,0.00027918,2]
[422320373,1778819453000,-200.0,0.00027948,2]
[422320374,1778819453000,-200.0,0.00027948,2]
[422320376,1778819453000,-2855.37913088,0.00027992,2]
[422320375,1778819453000,-151.0,0.00027974,2]
[422320377,1778819453000,-151.0,0.00027997,7]
[422320378,1778819453000,-51568.19870238,0.00028,2]
[422320379,1778819453000,-160.0,0.00028,2]
[422320380,1778819453000,-320.76,0.00028,30]
[422320381,1778819453000,-643.0,0.00028,2]
[422320386,1778819453000,-678.99,0.00028,2]
[422320389,1778819453000,-678.99,0.00028,2]
[422320387,1778819453000,-678.99,0.00028,2]
[422320388,1778819453000,-678.99,0.00028,2]
[422320384,1778819453000,-678.99,0.00028,2]
[422320383,1778819453000,-214.997284,0.00028,10]
[422320385,1778819453000,-678.99,0.00028,2]
[422320391,1778819453000,-678.99,0.00028,2]
[422320392,1778819453000,-678.99,0.00028,2]
[422320382,1778819453000,-600.0,0.00028,2]
[422320367,1778819453000,-1223.0,0.00027918,2]
[422320351,1778819453000,-152.0,0.00027864,2]
[422320372,1778819453000,-200.0,0.00027948,2]
[422320390,1778819453000,-678.99,0.00028,2]
[422320350,1778819453000,-152.0,0.00027864,2]
[422320360,1778819453000,-279.9045709,0.00027864,2]
[422320349,1778819453000,-152.0,0.00027864,2]
[422320361,1778819453000,-1000.0,0.00027864,2]
[422320362,1778819453000,-1000.0,0.00027864,2]
[422320352,1778819453000,-152.0,0.00027864,2]
[422320358,1778819453000,-599.60298507,0.00027864,2]
[422320353,1778819453000,-174.61919141,0.00027864,2]
[422320370,1778819453000,-180.37574427,0.00027918,2]
[422320359,1778819453000,-1000.0,0.00027864,2]
[422320355,1778819453000,-152.0,0.00027864,2]
[422320357,1778819453000,-152.0,0.00027864,2]
[422320354,1778819453000,-152.0,0.00027864,2]
[422320363,1778819453000,-1000.0,0.00027864,2]
[422320364,1778819453000,-322.04152091,0.00027864,2]
[422320365,1778819453000,-181.08010149,0.00027864,2]
[422320368,1778819453000,-3631.0,0.00027918,2]
[422320366,1778819453000,-1270.0,0.00027918,2]
[422320371,1778819453000,-151.0,0.00027919,2]
[422320356,1778819453000,-181.08010149,0.00027864,2]
[422320393,1778819453000,-678.99,0.00028,2]
[422320400,1778819453000,-150.0,0.00028192,2]
[422320394,1778819453000,-181.65711183,0.00028002,30]
[422320425,1778819453000,-187.78006525,0.00028412,2]
[422320421,1778819453000,-771.01748645,0.00028412,2]
[422320422,1778819453000,-187.78006525,0.00028412,2]
[422320423,1778819453000,-181.08010149,0.00028412,2]
[422320426,1778819453000,-151.0,0.00028414,2]
[422320424,1778819453000,-290.26104003,0.00028412,2]
[422320431,1778819453000,-500.0,0.00028493,60]
[422320428,1778819453000,-151.0,0.00028469,2]
[422320427,1778819453000,-152.241,0.00028448,30]
[422320420,1778819453000,-1280.88388878,0.00028412,2]
[422320430,1778819453000,-174.0,0.0002848,120]
[422320435,1778819453000,-500.0,0.00028493,60]
[422320436,1778819453000,-500.0,0.00028493,60]
[422320434,1778819453000,-500.0,0.00028493,60]
[422320439,1778819453000,-500.0,0.00028493,60]
[422320433,1778819453000,-500.0,0.00028493,60]
[422320438,1778819453000,-500.0,0.00028493,60]
[422320437,1778819453000,-500.0,0.00028493,60]
[422320440,1778819453000,-500.0,0.00028493,60]
[422320396,1778819453000,-151.0,0.00028029,2]
[422320432,1778819453000,-500.0,0.00028493,60]
[422320419,1778819453000,-218.77679972,0.00028412,2]
[422320429,1778819453000,-1395.149601,0.00028478,14]
[422320415,1778819453000,-151.0,0.00028359,2]
[422320398,1778819453000,-151.0,0.00028084,2]
[422320418,1778819453000,-200.0,0.00028412,2]
[422320397,1778819453000,-747.846453,0.00028052,14]
[422320395,1778819453000,-150.0,0.00028002,30]
[422320399,1778819453000,-151.0,0.00028139,2]
[422320409,1778819453000,-2855.37913088,0.00028296,2]
[422320401,1778819453000,-151.0,0.00028194,2]
[422320402,1778819453000,-1238.59,0.000282,7]
[422320404,1778819453000,-200.0,0.00028227,2]
[422320408,1778819453000,-1029.39030039,0.00028276,30]
[422320403,1778819453000,-200.0,0.00028227,2]
[422320407,1778819453000,-1129.2,0.00028267,2]
[422320406,1778819453000,-151.0,0.00028249,2]
[422320411,1778819453000,-151.0,0.00028304,2]
[422320410,1778819453000,-379.7416353,0.00028297,120]
[422320412,1778819453000,-1631.19290195,0.00028311,30]
[422320413,1778819453000,-579.0,0.00028329,6]
[422320414,1778819453000,-1006.92,0.0002834,30]
[422320405,1778819453000,-160.0,0.00028237,120]
[422320416,1778819453000,-159.0,0.00028395,3]
[422320417,1778819453000,-152.0,0.00028396,7]
[422320467,1778819454000,-150.0,0.00028493,60]
[422320473,1778819454000,-150.0,0.00028493,60]
[422320474,1778819454000,-500.0,0.00028493,60]
[422320471,1778819454000,-150.0,0.00028493,60]
[422320469,1778819454000,-150.0,0.00028493,60]
[422320472,1778819454000,-150.0,0.00028493,60]
[422320470,1778819454000,-150.0,0.00028493,60]
[422320476,1778819454000,-531.51017441,0.00028493,60]
[422320475,1778819454000,-150.0,0.00028493,60]
[422320477,1778819454000,-163.69546163,0.00028493,60]
[422320490,1778819454000,-500.0,0.00028493,2]
[422320479,1778819454000,-500.0,0.00028493,60]
[422320480,1778819454000,-500.0,0.00028493,60]
[422320481,1778819454000,-169.46289066,0.00028493,60]
[422320483,1778819454000,-374.27673268,0.00028493,60]
[422320482,1778819454000,-500.0,0.00028493,60]
[422320486,1778819454000,-500.0,0.00028493,60]
[422320485,1778819454000,-500.0,0.00028493,60]
[422320489,1778819454000,-500.0,0.00028493,60]
[422320488,1778819454000,-500.0,0.00028493,60]
[422320463,1778819454000,-500.0,0.00028493,60]
[422320478,1778819454000,-500.0,0.00028493,60]
[422320461,1778819454000,-500.0,0.00028493,60]
[422320441,1778819454000,-500.0,0.00028493,60]
[422320465,1778819454000,-520.53619171,0.00028493,60]
[422320491,1778819454000,-500.0,0.00028493,60]
[422320442,1778819454000,-500.0,0.00028493,60]
[422320444,1778819454000,-500.0,0.00028493,60]
[422320443,1778819454000,-500.0,0.00028493,60]
[422320450,1778819454000,-500.0,0.00028493,60]
[422320449,1778819454000,-500.0,0.00028493,60]
[422320445,1778819454000,-439.10728653,0.00028493,60]
[422320448,1778819454000,-500.0,0.00028493,60]
[422320446,1778819454000,-500.0,0.00028493,60]
[422320447,1778819454000,-500.0,0.00028493,60]
[422320466,1778819454000,-150.0,0.00028493,60]
[422320452,1778819454000,-500.0,0.00028493,60]
[422320453,1778819454000,-500.0,0.00028493,60]
[422320454,1778819454000,-500.0,0.00028493,60]
[422320455,1778819454000,-357.13411433,0.00028493,60]
[422320459,1778819454000,-500.0,0.00028493,60]
[422320456,1778819454000,-500.0,0.00028493,60]
[422320457,1778819454000,-500.0,0.00028493,60]
[422320458,1778819454000,-500.0,0.00028493,60]
[422320460,1778819454000,-500.0,0.00028493,60]
[422320462,1778819454000,-500.0,0.00028493,60]
[422320468,1778819454000,-150.0,0.00028493,60]
[422320451,1778819454000,-500.0,0.00028493,60]
[422320484,1778819454000,-503.3815445,0.00028493,60]
[422320464,1778819454000,-500.0,0.00028493,60]
[422320492,1778819454000,-500.0,0.00028493,60]
[422320518,1778819454000,-500.0,0.00028493,60]
[422320517,1778819454000,-500.0,0.00028493,60]
[422320520,1778819454000,-150.0,0.00028493,60]
[422320525,1778819454000,-500.0,0.00028493,60]
[422320522,1778819454000,-500.0,0.00028493,60]
[422320524,1778819454000,-500.0,0.00028493,60]
[422320523,1778819454000,-150.0,0.00028493,60]
[422320527,1778819454000,-500.0,0.00028493,60]
[422320529,1778819454000,-192.58872162,0.00028493,60]
[422320526,1778819454000,-150.0,0.00028493,60]
[422320514,1778819454000,-500.0,0.00028493,60]
[422320530,1778819454000,-500.0,0.00028493,60]
[422320533,1778819454000,-500.0,0.00028493,60]
[422320534,1778819454000,-500.0,0.00028493,60]
[422320540,1778819454000,-200.0,0.00028509,2]
[422320535,1778819454000,-500.0,0.00028493,60]
[422320537,1778819454000,-485.02515162,0.00028493,60]
[422320536,1778819454000,-500.0,0.00028493,60]
[422320539,1778819454000,-314.0,0.000285,2]
[422320532,1778819454000,-500.0,0.00028493,60]
[422320541,1778819454000,-200.0,0.00028509,2]
[422320487,1778819454000,-500.0,0.00028493,2]
[422320528,1778819454000,-500.0,0.00028493,60]
[422320519,1778819454000,-500.0,0.00028493,60]
[422320531,1778819454000,-150.0,0.00028493,2]
[422320521,1778819454000,-500.0,0.00028493,60]
[422320516,1778819454000,-500.0,0.00028493,60]
[422320501,1778819454000,-500.0,0.00028493,60]
[422320493,1778819454000,-500.0,0.00028493,2]
[422320495,1778819454000,-500.0,0.00028493,60]
[422320499,1778819454000,-500.0,0.00028493,2]
[422320500,1778819454000,-500.0,0.00028493,60]
[422320496,1778819454000,-500.0,0.00028493,2]
[422320498,1778819454000,-500.0,0.00028493,60]
[422320497,1778819454000,-500.0,0.00028493,60]
[422320502,1778819454000,-500.0,0.00028493,60]
[422320503,1778819454000,-240.52612769,0.00028493,60]
[422320504,1778819454000,-500.0,0.00028493,60]
[422320494,1778819454000,-500.0,0.00028493,60]
[422320507,1778819454000,-500.0,0.00028493,60]
[422320505,1778819454000,-501.6174179,0.00028493,2]
[422320509,1778819454000,-150.0,0.00028493,2]
[422320508,1778819454000,-500.0,0.00028493,60]
[422320510,1778819454000,-150.0,0.00028493,2]
[422320511,1778819454000,-500.0,0.00028493,60]
[422320513,1778819454000,-500.0,0.00028493,60]
[422320512,1778819454000,-500.0,0.00028493,60]
[422320515,1778819454000,-500.0,0.00028493,60]
[422320538,1778819454000,-503.54620549,0.00028493,60]
[422320506,1778819454000,-521.92567295,0.00028493,60]
[422320568,1778819455000,-509.42387583,0.00029,2]
[422320570,1778819455000,-175.0,0.00029196,120]
[422320575,1778819455000,-2578.93,0.000294,7]
[422320579,1778819455000,-405.0,0.00029445,2]
[422320574,1778819455000,-500.0,0.00029308,2]
[422320571,1778819455000,-1631.19290195,0.00029224,30]
[422320578,1778819455000,-150.0,0.00029431,2]
[422320572,1778819455000,-187.78006525,0.00029233,2]
[422320577,1778819455000,-150.0,0.00029431,2]
[422320576,1778819455000,-152.0,0.00029406,8]
[422320573,1778819455000,-150.0,0.00029254,2]
[422320581,1778819455000,-328.0,0.00029445,2]
[422320582,1778819455000,-579.0,0.00029452,7]
[422320591,1778819455000,-200.0,0.000297,2]
[422320583,1778819455000,-16022.60011782,0.000295,120]
[422320580,1778819455000,-490.0,0.00029445,2]
[422320585,1778819455000,-829.12830338,0.00029508,2]
[422320587,1778819455000,-194.72792766,0.00029508,2]
[422320584,1778819455000,-200.0,0.00029508,2]
[422320588,1778819455000,-150.0,0.00029601,2]
[422320590,1778819455000,-1238.59,0.000297,7]
[422320586,1778819455000,-201.93286099,0.00029508,2]
[422320595,1778819455000,-4818.50056859,0.000299,2]
[422320592,1778819455000,-308.0,0.000297,2]
[422320567,1778819455000,-1574.39988005,0.00029,2]
[422320542,1778819455000,-151.0,0.00028524,2]
[422320562,1778819455000,-194.72792766,0.0002896,2]
[422320594,1778819455000,-439.84,0.00029811,7]
[422320544,1778819455000,-1833.39,0.000286,7]
[422320543,1778819455000,-151.0,0.00028579,2]
[422320546,1778819455000,-151.0,0.00028634,2]
[422320549,1778819455000,-1178.687896,0.00028767,7]
[422320548,1778819455000,-1106.25305605,0.00028761,3]
[422320545,1778819455000,-2900.42,0.000286,14]
[422320551,1778819455000,-1178.687896,0.00028767,7]
[422320547,1778819455000,-500.0,0.00028759,120]
[422320550,1778819455000,-1178.687896,0.00028767,7]
[422320552,1778819455000,-1178.687896,0.00028767,7]
[422320569,1778819455000,-1006.92,0.00029146,30]
[422320554,1778819455000,-1178.687896,0.00028767,7]
[422320556,1778819455000,-1178.687896,0.00028767,7]
[422320557,1778819455000,-232.0,0.00028787,120]
[422320566,1778819455000,-19136.5,0.00029,2]
[422320558,1778819455000,-579.0,0.0002889,6]
[422320555,1778819455000,-1178.687896,0.00028767,7]
[422320559,1778819455000,-200.0,0.0002896,2]
[422320565,1778819455000,-284.72524478,0.0002896,2]
[422320561,1778819455000,-799.54513345,0.0002896,2]
[422320560,1778819455000,-393.05381733,0.0002896,2]
[422320564,1778819455000,-426.98182124,0.0002896,2]
[422320563,1778819455000,-187.78006525,0.0002896,2]
[422320553,1778819455000,-1178.687896,0.00028767,7]
[422320593,1778819455000,-1000.0,0.000297,2]
[422320589,1778819455000,-19136.5,0.000297,2]
[422320596,1778819455000,-286.03920346,0.000299,5]
[422320626,1778819455000,-200.0,0.00030056,2]
[422320625,1778819455000,-579.0,0.00030014,7]
[422320628,1778819455000,-209.40437684,0.00030056,2]
[422320630,1778819455000,-1634.0017148,0.00030089,2]
[422320640,1778819455000,-151.0,0.0003013,7]
[422320629,1778819455000,-201.93286099,0.00030056,2]
[422320631,1778819455000,-82541.119588,0.00030089,2]
[422320634,1778819455000,-21834.4008678,0.00030089,2]
[422320632,1778819455000,-17443.77024,0.00030089,2]
[422320633,1778819455000,-14621.4889006,0.00030089,2]
[422320635,1778819455000,-2900.42,0.000301,14]
[422320627,1778819455000,-859.80605061,0.00030056,2]
[422320637,1778819455000,-2354.0,0.000301,120]
[422320638,1778819455000,-202341.62736104,0.0003013,7]
[422320642,1778819455000,-151.0,0.0003013,7]
[422320643,1778819455000,-151.0,0.0003013,7]
[422320641,1778819455000,-151.0,0.0003013,7]
[422320648,1778819455000,-405.890077,0.0003013,7]
[422320646,1778819455000,-405.890077,0.0003013,7]
[422320649,1778819455000,-524.970701,0.0003013,7]
[422320644,1778819455000,-153.773592,0.0003013,7]
[422320647,1778819455000,-405.890077,0.0003013,7]
[422320645,1778819455000,-405.890077,0.0003013,7]
[422320605,1778819455000,-189.16730434,0.0003,120]
[422320636,1778819455000,-200.0,0.000301,10]
[422320623,1778819455000,-8710.72041311,0.0003,2]
[422320639,1778819455000,-151.0,0.0003013,7]
[422320619,1778819455000,-165.49923737,0.0003,2]
[422320604,1778819455000,-366.95497307,0.0003,30]
[422320624,1778819455000,-200.0,0.0003,2]
[422320597,1778819455000,-174.0,0.00029904,120]
[422320601,1778819455000,-1907.24127394,0.00029989,2]
[422320602,1778819455000,-240.55518668,0.00029989,2]
[422320600,1778819455000,-1026.3,0.00029961,7]
[422320603,1778819455000,-240.77300292,0.0002999,2]
[422320599,1778819455000,-1006.92,0.00029952,30]
[422320607,1778819455000,-10000.0,0.0003,10]
[422320617,1778819455000,-525.06781649,0.0003,30]
[422320611,1778819455000,-11095.61003073,0.0003,10]
[422320609,1778819455000,-20171.83415881,0.0003,2]
[422320598,1778819455000,-500.0,0.00029928,120]
[422320615,1778819455000,-500.0,0.0003,2]
[422320620,1778819455000,-311.28747582,0.0003,2]
[422320621,1778819455000,-167.64928135,0.0003,120]
[422320622,1778819455000,-650.0,0.0003,2]
[422320618,1778819455000,-169.71832691,0.0003,120]
[422320613,1778819455000,-1845.37660932,0.0003,2]
[422320612,1778819455000,-324.47150361,0.0003,2]
[422320616,1778819455000,-809.92900439,0.0003,120]
[422320608,1778819455000,-474.84868842,0.0003,120]
[422320614,1778819455000,-166.0,0.0003,120]
[422320606,1778819455000,-108812.25223187,0.0003,5]
[422320610,1778819455000,-87877.0,0.0003,2]
[422320690,1778819456000,-151.0,0.0003013,7]
[422320688,1778819456000,-151.0,0.0003013,7]
[422320691,1778819456000,-548.76,0.00030137,2]
[422320687,1778819456000,-151.0,0.0003013,7]
[422320684,1778819456000,-1178.687896,0.0003013,7]
[422320689,1778819456000,-151.0,0.0003013,7]
[422320685,1778819456000,-151.0,0.0003013,7]
[422320683,1778819456000,-1178.687896,0.0003013,7]
[422320680,1778819456000,-270.241083,0.0003013,7]
[422320682,1778819456000,-1178.687896,0.0003013,7]
[422320694,1778819456000,-150.0,0.00030137,2]
[422320686,1778819456000,-151.0,0.0003013,7]
[422320702,1778819456000,-437.0942864,0.00030137,2]
[422320705,1778819456000,-1129.2,0.00030239,2]
[422320692,1778819456000,-200.0,0.00030137,2]
[422320693,1778819456000,-1856.0,0.00030137,30]
[422320698,1778819456000,-398.0,0.00030137,2]
[422320696,1778819456000,-229.0,0.00030137,2]
[422320697,1778819456000,-250.0,0.00030137,2]
[422320700,1778819456000,-208.0,0.00030137,2]